bitfinex-derivatives/quotes_BTCF0:USTF0_20241116
["timestamp","ask_amount","ask_price","bid_price","bid_amount"]
[1731775246053,0.10512868,90634.0,90624.0,0.47277735]
[1731775246266,0.10512868,90634.0,90633.0,0.415942]
[1731775246558,0.15029967,90634.0,90633.0,0.415942]
[1731775247054,0.15029967,90634.0,90633.0,0.52628743]
[1731775247655,0.15029967,90634.0,90633.0,0.47114543]
[1731775247957,0.20544167,90634.0,90633.0,0.47114543]
[1731775249756,0.10031299,90634.0,90633.0,0.4814887]
[1731775251968,0.10031299,90634.0,90611.0,0.3608]
[1731775252170,0.21025736,90612.0,90611.0,0.3608]
[1731775252652,0.21025736,90612.0,90611.0,0.47113447]
[1731775252849,0.21025736,90612.0,90611.0,0.3608]
[1731775254057,0.21025736,90612.0,90600.0,0.10056]
[1731775254058,0.055159,90606.0,90600.0,0.10056]
[1731775254255,0.055159,90606.0,90600.0,0.1]
[1731775254651,0.386279,90606.0,90600.0,0.1]
[1731775254852,0.16029068,90601.0,90600.0,0.1]
[1731775255159,0.61069068,90601.0,90600.0,0.10344939]
[1731775255355,0.61069068,90601.0,90600.0,0.1]
[1731775255551,0.055169,90589.0,90585.0,6.572e-05]
[1731775255763,0.16029968,90586.0,90585.0,6.572e-05]
[1731775255952,0.16029968,90586.0,90585.0,0.11044038]
[1731775258466,0.20582135,90586.0,90585.0,0.11044038]
[1731775259175,0.10069267,90586.0,90585.0,0.47124038]
[1731775259465,0.055168,90592.0,90586.0,0.055171]
[1731775259662,0.0896,90591.0,90585.0,0.47188038]
[1731775259983,0.0896,90591.0,90588.0,0.055169]
[1731775260465,0.144768,90591.0,90585.0,0.36086572]
[1731775260669,0.10512868,90586.0,90585.0,0.36086572]
[1731775260872,0.10512868,90586.0,90585.0,6.572e-05]
[1731775261273,0.10512868,90586.0,90585.0,0.47125378]
[1731775261470,0.055168,90591.0,90585.0,0.47125378]
[1731775261471,0.04453391,90593.0,90585.0,0.47125378]
[1731775261670,0.055164,90598.0,90585.0,0.47125378]
[1731775261671,0.0896,90598.0,90592.0,0.055167]
[1731775261970,0.04482694,90598.0,90596.0,0.055165]
[1731775262170,0.10512868,90601.0,90596.0,0.055165]
[1731775262467,0.14951754,90601.0,90596.0,0.055165]
[1731775262669,0.14951754,90601.0,90593.0,0.11039294]
[1731775262670,0.055161,90602.0,90593.0,0.3608]
[1731775262872,0.00165655,90605.0,90586.0,0.055171]
[1731775262873,0.055167,90592.0,90586.0,0.055171]
[1731775263071,0.10512868,90590.0,90585.0,6.572e-05]
[1731775263370,0.10512868,90590.0,90587.0,0.11038867]
[1731775263668,0.10512868,90590.0,90588.0,0.055169]
[1731775264259,0.16029268,90597.0,90591.0,0.055167]
[1731775264568,0.055161,90603.0,90597.0,0.055164]
[1731775264768,0.04683663,90605.0,90602.0,0.415961]
[1731775264960,0.00165655,90605.0,90602.0,0.415961]
[1731775265576,0.00165655,90605.0,90603.0,0.11037101]
[1731775265873,0.05515,90620.0,90612.0,0.055155]
[1731775266063,0.055148,90624.0,90617.0,0.055152]
[1731775266263,0.14940132,90628.0,90622.0,0.3608]
[1731775266463,0.14940132,90628.0,90626.0,0.3608]
[1731775266678,0.20454632,90628.0,90626.0,0.3608]
[1731775266862,0.14940132,90628.0,90626.0,0.3608]
[1731775267169,0.14940132,90628.0,90627.0,0.11035578]
[1731775267487,0.14940132,90628.0,90621.0,0.3608]
[1731775267660,0.055149,90623.0,90622.0,0.01034368]
[1731775267868,0.16027768,90623.0,90622.0,0.11034239]
[1731775268076,0.52107768,90623.0,90603.0,0.0051]
[1731775268274,0.10512868,90604.0,90599.0,0.055163]
[1731775268574,0.055158,90607.0,90601.0,0.055162]
[1731775268872,0.055154,90613.0,90606.0,0.3608]
[1731775269070,0.055154,90613.0,90607.0,0.01034621]
[1731775269265,0.055154,90613.0,90608.0,0.01034621]
[1731775269478,0.055154,90613.0,90609.0,0.01034621]
[1731775269672,0.055154,90613.0,90610.0,0.01034621]
[1731775269867,0.055154,90613.0,90611.0,0.01034621]
[1731775270172,0.10512868,90620.0,90612.0,0.01034621]
[1731775270472,0.04356345,90620.0,90617.0,0.3608]
[1731775270677,0.0896,90621.0,90618.0,0.01034621]
[1731775270870,0.0896,90621.0,90619.0,0.01034621]
[1731775271374,0.055149,90622.0,90620.0,0.01034621]
[1731775271573,0.10512868,90621.0,90620.0,0.12069712]
[1731775271770,0.10512868,90621.0,90620.0,0.01034443]
[1731775272079,0.10512868,90621.0,90620.0,0.12069534]
[1731775272470,0.04538642,90622.0,90620.0,0.12069534]
[1731775272670,0.0896,90627.0,90620.0,0.11035091]
[1731775272871,0.0896,90627.0,90623.0,0.3608]
[1731775273272,0.0896,90627.0,90624.0,0.1103503]
[1731775273273,0.13379345,90627.0,90624.0,0.1103503]
[1731775273675,0.055147,90626.0,90624.0,0.1103503]
[1731775277580,0.04419345,90627.0,90624.0,0.1654973]
[1731775277881,0.055143,90632.0,90625.0,6.572e-05]
[1731775278066,0.00165583,90633.0,90628.0,0.055145]
[1731775278270,0.00165583,90633.0,90625.0,6.572e-05]
[1731775278478,0.10512868,90626.0,90625.0,6.572e-05]
[1731775279079,0.10512868,90626.0,90625.0,0.11040628]
[1731775279283,0.10512868,90626.0,90625.0,0.12075067]
[1731775280180,0.10512868,90626.0,90625.0,0.11040628]
[1731775280480,0.055146,90627.0,90625.0,0.12075084]
[1731775280779,0.055144,90631.0,90626.0,0.0103444]
[1731775280973,0.055144,90631.0,90627.0,0.0103444]
[1731775281180,0.055144,90631.0,90628.0,0.0103444]
[1731775281381,0.055144,90631.0,90629.0,0.0103444]
[1731775281683,0.055144,90631.0,90628.0,0.11034421]
[1731775281684,0.06938447,90633.0,90630.0,0.0103444]
[1731775281876,0.06938447,90633.0,90631.0,0.0103444]
[1731775282179,0.06938447,90633.0,90632.0,0.0103444]
[1731775283287,0.17451315,90633.0,90632.0,0.1206807]
[1731775286184,0.055146,90626.0,90625.0,6.572e-05]
[1731775286778,0.16027468,90626.0,90625.0,0.12074593]
[1731775287080,0.055146,90626.0,90625.0,0.12074593]
[1731775287283,0.16027468,90626.0,90625.0,0.12074593]
[1731775289191,0.055146,90626.0,90625.0,0.12074593]
[1731775289491,0.055146,90626.0,90625.0,0.47120141]
[1731775290283,0.055146,90626.0,90625.0,0.48154494]
[1731775290478,0.055146,90626.0,90625.0,0.47120141]
[1731775291383,0.055146,90626.0,90625.0,0.48154514]
[1731775292092,0.16027468,90626.0,90625.0,0.47120141]
[1731775292486,0.16027468,90626.0,90625.0,0.48154562]
[1731775294793,0.098209,90626.0,90625.0,0.01040993]
[1731775295093,0.153355,90626.0,90625.0,0.01040993]
[1731775295391,0.055157,90609.0,90607.0,0.3608]
[1731775295590,0.055157,90609.0,90607.0,0.75594344]
[1731775295981,0.055157,90609.0,90605.0,0.39514344]
[1731775296294,0.055159,90605.0,90603.0,0.32937697]
[1731775296493,0.05516,90603.0,90599.0,0.32937697]
[1731775296685,0.10512868,90604.0,90599.0,0.32925298]
[1731775296885,0.055162,90600.0,90599.0,0.32925298]
[1731775297080,0.10512868,90604.0,90598.0,0.32925298]
[1731775297289,0.055163,90599.0,90598.0,0.32925298]
[1731775297499,0.10512868,90604.0,90596.0,0.32925298]
[1731775297500,0.055164,90597.0,90596.0,0.32925298]
[1731775298086,0.055165,90596.0,90594.0,0.3608]
[1731775298286,0.055165,90596.0,90593.0,0.05746156]
[1731775298495,0.055165,90596.0,90594.0,0.47117405]
[1731775298898,0.055165,90595.0,90594.0,0.47117405]
[1731775299392,0.055165,90595.0,90594.0,0.80002382]
[1731775299592,0.055165,90595.0,90594.0,0.47117405]
[1731775299784,0.055165,90595.0,90594.0,0.80002382]
[1731775299994,0.08948,90601.0,90594.0,0.47117405]
[1731775300195,0.08948,90601.0,90596.0,0.32881627]
[1731775300384,0.055163,90599.0,90595.0,0.32881627]
[1731775300586,0.08948,90601.0,90595.0,0.32881627]
[1731775300888,0.055165,90597.0,90596.0,0.11037832]
[1731775301694,0.055165,90595.0,90594.0,0.36136]
[1731775301894,0.055165,90595.0,90593.0,0.33047183]
[1731775302093,0.055165,90595.0,90594.0,0.68961627]
[1731775302300,0.055165,90595.0,90594.0,0.79999581]
[1731775302502,0.055165,90595.0,90594.0,0.47117954]
[1731775304003,0.144642,90601.0,90594.0,0.79999581]
[1731775304191,0.144642,90601.0,90598.0,0.055163]
[1731775304499,0.4052112,90610.0,90596.0,0.32881627]
[1731775304700,0.055157,90608.0,90603.0,0.05516]
[1731775304895,0.08948,90609.0,90603.0,0.05516]
[1731775305095,0.055158,90607.0,90603.0,0.05516]
[1731775305396,0.055159,90606.0,90604.0,0.12072451]
[1731775305703,0.0435712,90610.0,90605.0,0.06550519]
[1731775305896,0.055158,90608.0,90606.0,0.01034619]
[1731775306201,0.055157,90608.0,90607.0,0.01034619]
[1731775306600,0.055157,90608.0,90607.0,0.12071293]
[1731775310101,0.04372109,90611.0,90608.0,0.055157]
[1731775310301,0.08936,90620.0,90607.0,0.11036674]
[1731775310500,0.055153,90615.0,90608.0,0.01034583]
[1731775310703,0.055154,90614.0,90610.0,0.055156]
[1731775310892,0.055154,90614.0,90611.0,0.01034583]
[1731775311093,0.055154,90614.0,90612.0,0.01034583]
[1731775311294,0.055154,90614.0,90612.0,0.12070953]
[1731775311494,0.055154,90614.0,90613.0,0.01034583]
[1731775311701,0.055154,90614.0,90613.0,0.01034513]
[1731775312515,0.055154,90614.0,90613.0,0.48150457]
[1731775313500,0.0458039,90620.0,90613.0,0.48150457]
[1731775313705,0.05515,90621.0,90617.0,0.055152]
[1731775314006,0.05515,90621.0,90618.0,0.06549613]
[1731775314213,0.05515,90621.0,90619.0,0.01034513]
[1731775314404,0.05515,90621.0,90620.0,0.01034513]
[1731775314909,0.05515,90621.0,90620.0,0.12069665]
[1731775315811,0.15050905,90625.0,90622.0,0.055149]
[1731775315998,0.04538037,90625.0,90624.0,0.3608]
[1731775316203,0.055147,90625.0,90624.0,0.37114513]
[1731775316503,0.055147,90625.0,90624.0,0.48149543]
[1731775317012,0.055147,90625.0,90624.0,0.12069543]
[1731775317211,0.16027568,90625.0,90624.0,0.12069543]
[1731775318305,0.16027568,90625.0,90624.0,0.1103503]
[1731775318811,0.05515,90621.0,90617.0,0.055152]
[1731775319010,0.05515,90620.0,90618.0,0.11034543]
[1731775320507,0.1503206,90625.0,90618.0,0.11034543]
[1731775320709,0.1503206,90625.0,90621.0,0.055149]
[1731775320905,0.055148,90623.0,90621.0,0.055149]
[1731775321106,0.1503206,90625.0,90622.0,0.11035213]
[1731775321410,0.055149,90622.0,90616.0,0.055153]
[1731775321613,0.04519192,90625.0,90613.0,0.75650344]
[1731775321809,0.10512868,90632.0,90622.0,0.055149]
[1731775321810,0.055145,90628.0,90622.0,0.055149]
[1731775322308,0.055145,90628.0,90623.0,0.11034665]
[1731775322514,0.055145,90628.0,90623.0,0.16549465]
[1731775322809,0.055145,90628.0,90623.0,0.055148]
[1731775323215,0.08936,90629.0,90623.0,0.055148]
[1731775323216,0.08936,90629.0,90624.0,0.11034482]
[1731775323514,0.055147,90625.0,90624.0,0.11034482]
[1731775323903,0.055147,90625.0,90620.0,0.68922629]
[1731775324312,0.055147,90625.0,90621.0,0.4387705]
[1731775324712,0.08936,90629.0,90621.0,0.4387705]
[1731775324713,0.08936,90629.0,90622.0,0.055149]
[1731775325105,0.08936,90629.0,90623.0,0.055148]
[1731775325308,0.08936,90629.0,90623.0,0.16549587]
[1731775325509,0.055145,90628.0,90623.0,0.16549587]
[1731775325715,0.055145,90628.0,90623.0,0.055148]
[1731775325913,0.055145,90628.0,90624.0,0.11034361]
[1731775326510,0.055145,90628.0,90624.0,0.16549161]
[1731775326908,0.055145,90628.0,90624.0,0.055148]
[1731775327312,0.055145,90628.0,90625.0,0.11034361]
[1731775329317,0.08936,90629.0,90625.0,0.11034361]
[1731775329518,0.055144,90631.0,90625.0,0.11034361]
[1731775329716,0.23833105,90632.0,90622.0,0.32842629]
[1731775329917,0.055144,90630.0,90623.0,0.110343]
[1731775330223,0.055144,90630.0,90624.0,0.01034367]
[1731775330721,0.055144,90630.0,90625.0,0.01034367]
[1731775330916,0.055144,90630.0,90626.0,0.01034367]
[1731775331116,0.055144,90630.0,90627.0,0.01034367]
[1731775331320,0.055144,90630.0,90628.0,0.01034367]
[1731775331526,0.055144,90630.0,90629.0,0.01034367]
[1731775332320,0.055144,90630.0,90629.0,0.11034056]
[1731775332821,0.055144,90630.0,90626.0,0.32842629]
[1731775333021,0.055144,90630.0,90627.0,0.11033934]
[1731775334317,0.055144,90630.0,90628.0,0.01034367]
[1731775334522,0.055144,90630.0,90627.0,0.11033934]
[1731775334523,0.23833105,90632.0,90629.0,0.01034367]
[1731775334711,0.00165583,90633.0,90631.0,0.055143]
[1731775335034,0.00165583,90633.0,90632.0,0.01034367]
[1731775335327,2.9e-07,90634.0,90633.0,0.055142]
[1731775335815,2.9e-07,90634.0,90633.0,0.16027068]
[1731775336021,2.9e-07,90634.0,90633.0,0.27060637]
[1731775336221,2.9e-07,90634.0,90633.0,0.27069429]
[1731775337012,2.9e-07,90634.0,90633.0,0.58984099]
[1731775337408,2.9e-07,90634.0,90633.0,0.5894501]
[1731775337826,2.9e-07,90634.0,90633.0,0.65076947]
[1731775338014,2.9e-07,90634.0,90633.0,0.98176947]
[1731775338216,2.9e-07,90634.0,90633.0,0.65076947]
[1731775338420,0.10512868,90666.0,90633.0,1.64538569]
[1731775338721,0.055125,90662.0,90656.0,0.055128]
[1731775338921,0.055125,90662.0,90661.0,0.3608]
[1731775339427,0.055125,90662.0,90661.0,0.47113447]
[1731775339923,0.04429485,90666.0,90661.0,0.47113447]
[1731775340120,0.02207377,90668.0,90661.0,0.47113447]
[1731775340315,0.055122,90667.0,90661.0,0.47113447]
[1731775341825,0.04514358,90670.0,90664.0,0.055123]
[1731775342021,0.04514358,90670.0,90661.0,0.47113447]
[1731775342022,0.055119,90671.0,90667.0,0.055121]
[1731775342222,0.144316,90676.0,90661.0,0.3608]
[1731775342418,0.055116,90676.0,90669.0,0.05512]
[1731775342822,0.055117,90674.0,90669.0,0.05512]
[1731775343016,0.055117,90674.0,90670.0,0.11029188]
[1731775343523,0.055117,90674.0,90673.0,0.3608]
[1731775344326,0.055117,90674.0,90673.0,0.47108763]
[1731775344920,0.07717315,90674.0,90673.0,0.47108763]
[1731775345523,0.18230183,90674.0,90673.0,0.11028763]
[1731775345828,0.055131,90651.0,90649.0,0.0051]
[1731775346022,0.055131,90651.0,90646.0,0.055134]
[1731775346331,0.055131,90651.0,90648.0,0.055133]
[1731775346537,0.055129,90654.0,90651.0,0.055131]
[1731775347027,0.055129,90654.0,90652.0,0.11031622]
[1731775347433,0.055129,90654.0,90647.0,0.055134]
[1731775348232,0.055129,90654.0,90648.0,0.11031074]
[1731775349226,0.10512868,90657.0,90648.0,0.11031074]
[1731775349534,0.055132,90649.0,90637.0,0.36301471]
[1731775349845,0.10512868,90650.0,90638.0,0.11031135]
[1731775349846,0.055139,90639.0,90638.0,0.11031135]
[1731775351833,0.09942693,90639.0,90638.0,0.11031135]
[1731775352135,0.055142,90634.0,90629.0,0.3608]
[1731775352334,0.05515,90620.0,90615.0,0.0051]
[1731775352630,0.05515,90620.0,90603.0,0.0892]
[1731775352833,0.49131868,90620.0,90596.0,0.3659]
[1731775353137,0.055161,90603.0,90597.0,0.055164]
[1731775353433,0.0892,90607.0,90602.0,0.11033447]
[1731775353738,0.3608,90618.0,90609.0,0.055156]
[1731775353739,0.144353,90615.0,90609.0,0.055156]
[1731775353928,0.10512868,90613.0,90602.0,0.11033447]
[1731775354132,0.10512868,90613.0,90596.0,0.415965]
[1731775354435,0.05516,90605.0,90602.0,0.11037283]
[1731775354630,0.05516,90604.0,90602.0,0.11037283]
[1731775354936,0.10512868,90613.0,90602.0,0.11037283]
[1731775355325,0.055159,90606.0,90602.0,0.11037283]
[1731775356336,0.0892,90615.0,90602.0,0.11037283]
[1731775356536,0.055159,90605.0,90602.0,0.11037283]
[1731775356923,0.10512868,90613.0,90602.0,0.11037283]
[1731775357237,0.05516,90604.0,90602.0,0.11037283]
[1731775357740,0.10512868,90606.0,90590.0,0.3608]
[1731775357939,0.055166,90594.0,90591.0,0.11037162]
[1731775358129,0.055166,90594.0,90592.0,4.854e-05]
[1731775358530,0.055163,90600.0,90592.0,4.854e-05]
[1731775358831,0.055166,90594.0,90593.0,0.1103838]
[1731775359037,0.055166,90594.0,90592.0,4.854e-05]
[1731775361039,0.33116,90593.0,90592.0,4.854e-05]
[1731775361235,0.055178,90575.0,90563.0,0.055185]
[1731775361435,0.10512868,90577.0,90564.0,0.3608]
[1731775361436,0.08924,90576.0,90564.0,0.3608]
[1731775361631,0.055184,90565.0,90564.0,0.3608]
[1731775362032,0.055184,90565.0,90564.0,0.47120635]
[1731775362536,0.055184,90565.0,90564.0,0.11040635]
[1731775363637,0.055178,90574.0,90555.0,0.3608]
[1731775363840,0.46592868,90570.0,90555.0,0.3608]
[1731775364036,0.46592868,90570.0,90556.0,0.11041854]
[1731775364243,0.055187,90559.0,90556.0,0.11041854]
[1731775365345,0.055187,90559.0,90556.0,0.12341854]
[1731775365346,0.056187,90559.0,90556.0,0.12341854]
[1731775365931,0.001,90559.0,90556.0,0.12341854]
[1731775366435,0.002,90559.0,90556.0,0.13741854]
[1731775367739,0.002,90559.0,90557.0,0.055188]
[1731775368340,0.002,90559.0,90558.0,0.11042707]
[1731775370144,0.001,90559.0,90558.0,0.11042707]
[1731775370540,0.04524942,90571.0,90559.0,0.055187]
[1731775370843,0.055175,90579.0,90570.0,0.3608]
[1731775371042,0.10678526,90584.0,90570.0,0.3608]
[1731775371248,0.00165658,90584.0,90570.0,0.46592868]
[1731775371444,0.00165658,90584.0,90581.0,0.3608]
[1731775371940,0.00165658,90584.0,90582.0,0.055173]
[1731775372343,0.00165658,90584.0,90583.0,0.3608]
[1731775372642,0.055165,90595.0,90588.0,0.055169]
[1731775373534,0.055165,90595.0,90589.0,0.11039538]
[1731775375049,0.10512868,90596.0,90594.0,0.3608]
[1731775375748,0.10512868,90596.0,90595.0,0.11038502]
[1731775376747,0.08916,90602.0,90595.0,0.16555002]
[1731775376940,0.10512868,90603.0,90595.0,0.16555002]
[1731775377545,0.055159,90605.0,90595.0,0.16555002]
[1731775378147,0.16028868,90604.0,90595.0,0.16555002]
[1731775378746,0.02207266,90602.0,90595.0,0.16555002]
[1731775379446,0.16028868,90604.0,90597.0,0.055164]
[1731775379844,0.10512868,90604.0,90603.0,0.3608]
[1731775380152,0.04413637,90607.0,90603.0,0.41596]
[1731775380358,0.10512868,90610.0,90603.0,0.3608]
[1731775380549,0.05516,90605.0,90604.0,0.1103771]
[1731775380944,0.05516,90605.0,90603.0,0.3608]
[1731775381949,0.08912,90604.0,90603.0,0.3608]
[1731775384451,0.08912,90604.0,90589.0,0.055169]
[1731775384452,0.055166,90594.0,90589.0,0.055169]
[1731775384643,0.055166,90594.0,90592.0,0.3608]
[1731775384948,0.055166,90594.0,90592.0,0.055167]
[1731775385146,0.055166,90594.0,90593.0,0.11037101]
[1731775385344,0.055162,90600.0,90594.0,0.055166]
[1731775385551,0.055162,90600.0,90593.0,0.11037101]
[1731775385552,0.055162,90600.0,90598.0,0.3608]
[1731775385745,0.055162,90600.0,90596.0,0.055165]
[1731775385954,0.055162,90600.0,90590.0,0.3608]
[1731775385955,0.055162,90600.0,90599.0,0.11037893]
[1731775386158,0.055162,90600.0,90594.0,0.055166]
[1731775386457,0.055162,90600.0,90595.0,0.16554393]
[1731775386762,0.00165587,90613.0,90599.0,0.46592868]
[1731775386951,0.055155,90612.0,90605.0,0.055159]
[1731775387151,0.055155,90612.0,90608.0,0.3608]
[1731775387551,0.04703168,90613.0,90609.0,0.11037893]
[1731775387751,0.04703168,90613.0,90611.0,0.055155]
[1731775388354,0.04703168,90613.0,90612.0,0.11036309]
[1731775391362,0.31891757,90674.0,90612.0,0.11036309]
[1731775391555,0.09423005,91255.0,90612.0,0.11036309]
[1731775391556,0.12990314,90659.0,90634.0,0.055141]
[1731775391759,0.02207231,90661.0,90650.0,0.3608]
[1731775391954,0.055127,90658.0,90650.0,0.3608]
[1731775392159,0.055128,90657.0,90639.0,0.3608]
[1731775392358,0.08912,90663.0,90640.0,8.367e-05]
[1731775392673,0.055137,90641.0,90640.0,0.11043032]
[1731775392961,0.055137,90641.0,90640.0,8.367e-05]
[1731775393363,0.16026568,90641.0,90640.0,8.367e-05]
[1731775394061,0.055137,90641.0,90640.0,8.367e-05]
[1731775394250,0.08912,90642.0,90640.0,8.367e-05]
[1731775394855,0.13302427,90642.0,90640.0,8.367e-05]
[1731775396358,0.15509157,90642.0,90640.0,8.367e-05]
[1731775396565,0.08912,90641.0,90640.0,8.367e-05]
[1731775400652,0.0220673,90642.0,90640.0,8.367e-05]
[1731775400962,0.0220673,90642.0,90640.0,0.05522167]
[1731775401175,0.089,90647.0,90646.0,0.055134]
[1731775401368,0.0220673,90657.0,90656.0,0.055128]
[1731775401665,0.0220673,90657.0,90656.0,0.415928]
[1731775401865,0.0220673,90657.0,90656.0,0.776728]
[1731775402364,0.0220673,90657.0,90656.0,0.055128]
[1731775402865,0.1110673,90657.0,90656.0,0.055128]
[1731775403363,0.0220673,90657.0,90656.0,0.055128]
[1731775403568,0.1110673,90657.0,90656.0,0.055128]
[1731775404466,0.0220673,90657.0,90656.0,0.055128]
[1731775404673,0.1110673,90657.0,90656.0,0.055128]
[1731775407759,0.1110673,90657.0,90655.0,0.25046951]
[1731775407963,0.1661953,90657.0,90655.0,0.25046951]
[1731775408162,0.089,90656.0,90655.0,0.25046951]
[1731775409666,0.089,90656.0,90652.0,0.055131]
[1731775409862,0.05513,90653.0,90652.0,0.055131]
[1731775410459,0.05513,90653.0,90652.0,0.415931]
[1731775411175,0.05513,90653.0,90652.0,0.3608]
[1731775411375,0.38605,90653.0,90652.0,0.3608]
[1731775411579,0.055137,90642.0,90640.0,8.367e-05]
[1731775411777,0.089,90641.0,90640.0,8.367e-05]
[1731775412170,0.41996,90641.0,90640.0,8.367e-05]
[1731775412673,0.055149,90622.0,90620.0,0.05515]
[1731775413676,0.055149,90622.0,90621.0,0.11032595]
[1731775413982,0.055145,90628.0,90626.0,0.055146]
[1731775414173,0.055145,90628.0,90626.0,0.415946]
[1731775417282,0.055145,90628.0,90626.0,0.3608]
[1731775418175,0.055146,90627.0,90626.0,0.3608]
[1731775418679,0.13419036,90629.0,90628.0,0.055145]
[1731775419375,0.13419036,90629.0,90628.0,0.165488]
[1731775420480,0.13419036,90629.0,90628.0,0.27061668]
[1731775420887,0.02206591,90641.0,90628.0,0.21547168]
[1731775421074,0.02206591,90641.0,90636.0,0.10512868]
[1731775421075,0.089,90638.0,90636.0,0.10512868]
[1731775421279,0.089,90638.0,90637.0,0.3608]
[1731775422279,0.04617358,90644.0,90637.0,0.4711296]
[1731775422580,0.04617358,90644.0,90638.0,0.055139]
[1731775422581,0.055137,90642.0,90638.0,0.055139]
[1731775423279,0.055137,90642.0,90639.0,0.11032595]
[1731775423793,0.055138,90640.0,90639.0,0.11032595]
[1731775424088,0.04617358,90644.0,90637.0,0.3608]
[1731775424282,0.055139,90638.0,90637.0,0.3608]
[1731775424881,0.055139,90638.0,90637.0,0.47112595]
[1731775432794,0.055139,90638.0,90637.0,0.3608]
[1731775433186,0.386139,90638.0,90626.0,0.3608]
[1731775433499,0.055146,90627.0,90626.0,0.3608]
[1731775433689,0.144106,90627.0,90626.0,0.3608]
[1731775434486,0.144106,90627.0,90612.0,0.3608]
[1731775434487,0.055154,90613.0,90612.0,0.3608]
[1731775435183,0.055154,90613.0,90612.0,0.47116004]
[1731775436491,0.055154,90613.0,90612.0,0.3608]
[1731775436702,0.055154,90613.0,90599.0,0.3608]
[1731775436995,0.055162,90600.0,90599.0,0.3608]
[1731775438993,0.05516,90605.0,90599.0,0.47117588]
[1731775439383,0.05516,90605.0,90601.0,0.10512868]
[1731775439693,0.08896,90608.0,90606.0,0.055158]
[1731775440087,0.03633498,90608.0,90606.0,0.055158]
[1731775440289,0.08896,90618.0,90607.0,0.3608]
[1731775440493,0.08896,90621.0,90617.0,0.3608]
[1731775440895,0.05515,90620.0,90617.0,0.3608]
[1731775441088,0.05515,90620.0,90618.0,0.11035213]
[1731775441287,0.055151,90619.0,90618.0,0.11035213]
[1731775443391,0.16618005,90624.0,90618.0,0.11035213]
[1731775443698,0.055149,90623.0,90618.0,0.11035213]
[1731775443901,0.11103205,90624.0,90618.0,0.11035213]
[1731775444103,0.055151,90619.0,90618.0,0.11035213]
[1731775444290,0.055151,90619.0,90608.0,0.39388083]
[1731775444291,0.055159,90606.0,90599.0,0.3608]
[1731775444493,0.055162,90600.0,90599.0,0.3608]
[1731775445595,0.055161,90603.0,90599.0,0.47117588]
[1731775445795,0.055161,90603.0,90599.0,0.52633888]
[1731775445996,0.055157,90608.0,90599.0,0.47117588]
[1731775446203,0.09023468,90608.0,90607.0,0.3608]
[1731775446702,0.055162,90600.0,90599.0,0.3608]
[1731775447297,0.055162,90600.0,90599.0,0.47116613]
[1731775448693,0.055162,90600.0,90599.0,0.3608]
[1731775449000,0.144122,90600.0,90599.0,0.3608]
[1731775449195,0.08896,90600.0,90597.0,0.0016554]
[1731775449394,0.055164,90598.0,90597.0,0.0016554]
[1731775450507,0.055164,90598.0,90574.0,0.54034394]
[1731775450508,0.73636521,90598.0,90570.0,0.3608]
[1731775450707,0.73636521,90598.0,90558.0,0.3608]
[1731775450708,0.10512868,90573.0,90561.0,0.39898083]
[1731775451003,0.10512868,90573.0,90558.0,0.3608]
[1731775451004,0.05518,90571.0,90559.0,0.11039355]
[1731775451204,0.055187,90560.0,90559.0,0.11039355]
[1731775451511,0.055187,90560.0,90559.0,0.01035139]
[1731775451709,0.055187,90560.0,90559.0,0.12074494]
[1731775451899,0.144187,90560.0,90559.0,0.12074494]
[1731775452209,0.144187,90560.0,90559.0,0.11039355]
[1731775453604,0.17981611,90560.0,90559.0,0.11039355]
[1731775453808,0.09081611,90560.0,90559.0,0.11039355]
[1731775455012,0.089,90562.0,90559.0,0.16558055]
[1731775455901,0.055185,90563.0,90559.0,0.16558055]
[1731775456306,0.055185,90563.0,90562.0,0.3608]
[1731775456904,0.055185,90563.0,90562.0,0.47122341]
[1731775457497,0.055181,90570.0,90562.0,0.52640841]
[1731775457698,0.144181,90570.0,90562.0,0.52640841]
[1731775458207,0.055181,90570.0,90565.0,0.055183]
[1731775458910,0.055181,90570.0,90562.0,0.36136]
[1731775458911,0.055182,90568.0,90566.0,0.11041671]
[1731775459112,0.12436277,90573.0,90562.0,0.3608]
[1731775459412,0.055185,90563.0,90562.0,0.3608]
[1731775462312,0.055185,90563.0,90562.0,0.47122097]
[1731775462699,0.08896,90567.0,90562.0,0.52640597]
[1731775463003,0.08896,90567.0,90564.0,0.055184]
[1731775463205,0.144143,90567.0,90562.0,0.47186097]
[1731775463411,0.055183,90566.0,90562.0,0.3608]
[1731775463608,0.055183,90566.0,90563.0,0.11042097]
[1731775464111,0.16368868,90578.0,90563.0,0.11042097]
[1731775464314,0.16368868,90578.0,90570.0,0.41598]
[1731775464315,0.055179,90574.0,90570.0,0.41598]
[1731775464517,0.05518,90571.0,90570.0,0.3608]
[1731775465016,0.05518,90571.0,90570.0,0.47121854]
[1731775467111,0.08896,90577.0,90570.0,0.47121854]
[1731775467411,0.055177,90576.0,90572.0,0.055179]
[1731775468017,0.055177,90576.0,90573.0,0.11040696]
[1731775469110,0.03647902,90578.0,90574.0,0.055178]
[1731775469309,0.08896,90580.0,90578.0,0.055175]
[1731775469526,0.08896,90580.0,90571.0,0.3608]
[1731775469713,0.055175,90579.0,90573.0,0.055179]
[1731775470207,0.055175,90579.0,90574.0,0.11040513]
[1731775470712,0.055175,90579.0,90571.0,0.3608]
[1731775471222,0.055175,90579.0,90572.0,0.11040513]
[1731775471415,0.08896,90585.0,90577.0,0.055176]
[1731775471617,0.08896,90585.0,90579.0,0.3608]
[1731775471817,0.055173,90582.0,90579.0,0.3608]
[1731775472113,0.16029868,90587.0,90580.0,0.16557791]
[1731775472316,0.14413,90587.0,90580.0,0.11040391]
[1731775472616,0.179621,90587.0,90580.0,0.11040391]
[1731775472820,0.090661,90587.0,90580.0,0.11040391]
[1731775473316,0.090661,90587.0,90581.0,0.055174]
[1731775474115,0.090661,90587.0,90582.0,0.11039538]
[1731775474317,0.035491,90587.0,90582.0,0.11039538]
[1731775474518,0.055172,90584.0,90582.0,0.11039538]
[1731775474921,0.08896,90590.0,90579.0,0.3608]
[1731775475122,0.055174,90582.0,90580.0,0.11039599]
[1731775475424,0.055174,90582.0,90565.0,0.08956]
[1731775475425,0.3608,90583.0,90559.0,0.3608]
[1731775475628,0.055186,90561.0,90559.0,0.3608]